Cogmind - Beta 15 @@@ ROGUE MODE // 2025.07.04 @ 06:30:25 Player: Florist Result: Destroyed by FU-I4T(R) with Subdweller Laser Performance ------------- Evolutions (0) 0 Regions Visited (2) 400 Robots Destroyed (27) 135 Value Destroyed (636) 636 Prototype IDs (0) 0 Alien Tech Used (0) 0 Bonus (0) 0 TOTAL SCORE: 1171 Bonus ------- None Cogmind --------- Core Integrity 0/250 Matter 286/300 Energy 100/100 System Corruption 0% Temperature Cool (6) Movement Rolling (90) Location -10/Subcaves Parts ------- > --- POWER (1) -------- (None) > --- PROPULSION (2) --- Armored Wheel Armored Wheel > --- UTILITY (2) ------ Medium Storage Unit Seismic Detector > --- WEAPON (2) ------- Light Assault Rifle Light Assault Rifle > --- INVENTORY (10) --- Light Ion Engine Light Treads Armored Wheel Hacking Suite Subdweller Laser Light Assault Rifle Mini Grenade Launcher Mini Grenade Launcher Peak State ------------ > --- POWER ------------ Light Nuclear Core > --- PROPULSION ------- Armored Wheel Armored Wheel > --- UTILITY ---------- Medium Storage Unit Subdweller Optics > --- WEAPON ----------- Subdweller Laser Mini Grenade Launcher > --- INVENTORY -------- Light Ion Engine Light Treads Armored Wheel Armored Wheel Seismic Detector Hacking Suite Light Assault Rifle Light Assault Rifle Mini Grenade Launcher [Rating: 15] Favorites ----------- Power Light Nuclear Core Engine Ion Engine Power Core Light Nuclear Core Propulsion Light Treads Treads Light Treads Wheel Armored Wheel Utility Medium Storage Unit Device Seismic Detector Storage Medium Storage Unit Weapon Light Assault Rifle Energy Gun Medium Laser Ballistic Gun Light Assault Rifle Launcher Mini Grenade Launcher Build | -11 -10 -10 ------- Run | Yrd Mat Sub Slots Evolved . | . . . Power . | . . . Propulsion . | . . . Utility . | . . . Weapon . | . . . Parts Attached 22 | 7 6 9 Power 2 | 1 1 . Engine 1 | 1 . . Core 1 | . 1 . Reactor . | . . . Propulsion 5 | 2 2 1 Treads 2 | 2 . . Leg . | . . . Wheel 3 | . 2 1 Hover . | . . . Flight . | . . . Utility 5 | 2 1 2 Device 3 | 1 . 2 Storage 2 | 1 1 . Processor . | . . . Hackware . | . . . Protection . | . . . Artifact . | . . . Weapon 10 | 2 2 6 Energy Gun 3 | 2 . 1 Energy Cannon . | . . . Ballistic Gun 5 | . 2 3 Ballistic Cannon . | . . . Launcher 2 | . . 2 Special Weapon . | . . . Impact Weapon . | . . . Slashing Weapon . | . . . Piercing Weapon . | . . . Special Melee Weapon . | . . . Unidentified Prototypes . | . . . Parts Lost 8 | . 4 4 Power 2 | . 1 1 Propulsion 3 | . 2 1 Utility 1 | . 1 . Weapon 2 | . . 2 Highest Loss Streak 3 | . 3 2 To Critical Strikes . | . . . Average Backups 6 | 2 6 9 Power . | . 1 1 Propulsion 2 | 1 2 2 Utility 1 | . 1 1 Weapon 2 | . 1 3 Tool/Special . | . . . Unused Backups 8 | . 4 4 Power 1 | . . 1 Propulsion 5 | . 3 2 Utility 1 | . . 1 Weapon 1 | . 1 . Tool/Special . | . . . Average Slot Usage (%) 86 | . 85 89 Core 5 | . 3 10 Treads 13 | . 20 . Wheel 13 | . 7 27 Device 9 | . 10 8 Storage 14 | . 14 14 Energy Gun 7 | . 9 3 Ballistic Gun 18 | . 18 19 Launcher 1 | . . 4 Peak Build Rating 15 | 7 11 15 Average Rating 8 | 5 7 11 On Entrance 6 | . 7 11 Naked Turns . | . . . Heaviest Build 22 | 14 18 22 Greatest Support 40 | 40 40 24 Greatest Overweight (x) 1 | . . 1 Average Overweight (x) . | . . . Largest Inventory Capacity 10 | 8 10 10 Average Capacity 9 | 7 9 10 Most Carried 10 | 5 10 10 Average Carried 6 | 2 6 9 Final Capacity 10 | 8 10 10 Final Carried 10 | 5 10 8 Class Distribution -------------------- 90% | Mutant 9% | Scavenger-Mutant Dominant Class ---------------- Mutant | -10/Materials Mutant | -10/Subcaves Resources | -11 -10 -10 ----------- Run | Yrd Mat Sub Matter Collected 677 | 190 261 226 Remotely . | . . . Salvage Created 908 | 57 678 173 Parts 55 | 7 34 14 Haulers Intercepted 2 | . 2 . Recyclers Shooed 2 | . 2 . Parts Field Recycled . | . . . Retrieved Matter . | . . . Parts Self-Destructed 2 | . . 2 Prevented . | . . . Kills | -11 -10 -10 ------- Run | Yrd Mat Sub Combat Hostiles Destroyed 18 | . 11 7 Guns 14 | . 11 3 AOE 4 | . . 4 Classes Destroyed 8 | 1 6 1 Tunneler 2 | 2 . . Hauler 2 | . 2 . Recycler 2 | . 2 . Operator 1 | . 1 . Watcher 2 | . 2 . Swarmer 5 | . 3 2 Grunt 8 | . 8 . Subdweller 5 | . . 5 Best Kill Streak 4 | 1 4 2 Combat Bots Only 4 | . 4 2 Max Kills in Single Turn 2 | 1 1 2 Gunslinging . | . . . Exploded 2 | . . 2 Melee . | . . . Uniques/NPCs Destroyed . | . . . Combat | -11 -10 -10 -------- Run | Yrd Mat Sub Hostile Shots Fired 98 | . 51 47 Missed 19 | . 10 9 Hits 79 | . 41 38 Projectile 79 | . 41 38 Critical Strikes 1 | . . 1 Damage Taken 1194 | . 572 622 Core 259 | . 91 168 Absorbed by Shields . | . . . Core Remaining (%) 100 | 100 . . Volleys Fired 101 | 2 63 36 Largest 2 | 2 2 2 Hottest 90 | 90 90 60 Shots Fired 199 | 4 124 71 Gun 193 | 4 124 65 Cannon . | . . . Launcher 6 | . . 6 Special . | . . . Kinetic 135 | . 70 65 Thermal 58 | 4 54 . Explosive 6 | . . 6 Electromagnetic . | . . . Robot Hit Streak 16 | 3 16 9 Robot Miss Streak 3 | 1 3 2 Penetration Max . | . . . Secondary Targets 1 | . 1 . Max Gunslinging Chain 1 | . 1 . Shots Hit Robots 141 | 3 83 55 Core Hits 54 | 2 36 16 Critical Kills . | . . . Critical Parts Destroyed 1 | . 1 . Critical Strikes 2 | . 2 . Burn 1 | . 1 . Destroy 1 | . 1 . Melee Attacks . | . . . Impact . | . . . Slashing . | . . . Piercing . | . . . Sneak Attacks . | . . . Combat Hostiles . | . . . Follow-up Attacks . | . . . Damage Inflicted 1824 | 35 937 852 Guns 1416 | 35 931 450 Cannons . | . . . Explosions 402 | . . 402 Melee . | . . . Ramming 6 | . 6 . Kinetic 905 | . 455 450 Thermal 511 | 35 476 . Explosive 402 | . . 402 Electromagnetic . | . . . Impact . | . . . Slashing . | . . . Piercing . | . . . Highest Corruption . | . . . Average Corruption . | . . . Corruption Purged . | . . . Corruption Blocked . | . . . Overload Shots . | . . . Overflow Damage . | . . . Projectiles . | . . . Explosions . | . . . Melee . | . . . Knockbacks . | . . . Impact . | . . . Kinetic . | . . . Secondary . | . . . Self-Inflicted Damage . | . . . Shots . | . . . Rammed 2 | . 2 . Targets Rammed 2 | . 2 . Kicked . | . . . Crushed . | . . . Highest Temperature 102 | 30 102 . Average Temperature 34 | 18 35 . Received Heat Transfer 402 | . 240 162 Siege Activations . | . . . Martial Activations . | . . . Shielding Activations . | . . . Robots Disrupted . | . . . Combat Hostiles . | . . . Robots Corrupted . | . . . Combat Hostiles . | . . . Parts Fried . | . . . Impact Corruptions . | . . . Robots Melted . | . . . Combat Hostiles . | . . . Parts Melted 3 | . 3 . Heat Transferred 1437 | 87 1350 . Parts Sabotaged . | . . . Parts Stolen . | . . . Parts Stripped . | . . . Power Chain Reactions . | . . . Alert | -11 -10 -10 ------- Run | Yrd Mat Sub Maximum Alert Level . | . . . Low Security (%) 100 | 100 100 . Level 1 . | . . . Level 2 . | . . . Level 3 . | . . . Level 4 . | . . . Level 5 . | . . . High Security . | . . . Max Security . | . . . Peak Influence 122 | 5 122 . Initial . | . . . Average 32 | 1 34 . Influence Increases 474 | 10 399 65 Destroy 0b10 Robot/C 260 | . 220 40 Destroy 0b10 Robot/NC 45 | 10 35 . Destroy Leader 68 | . 58 10 Successful Hack 11 | . 11 . Disable Machine 15 | . 15 . Lose Combat Pursuer 75 | . 60 15 Influence Decreases 474 | 10 399 65 Time Decay 425 | 10 362 53 Lost Part 49 | . 37 12 Squads Dispatched 2 | . 2 . Investigation . | . . . Extermination . | . . . Reinforcement 2 | . 2 . Assault . | . . . Garrison . | . . . Intercept . | . . . Searches Triggered . | . . . Construction Impeded . | . . . Haulers Reinforced . | . . . Active Scanning Responses . | . . . Cargo Convoy Interrupts . | . . . Stealth | -11 -10 -10 --------- Run | Yrd Mat Sub Distress Signals . | . . . Communications Jammed . | . . . Distress Signals . | . . . Times Spotted 32 | . 23 9 Peak Tracking Total 5 | . 5 2 Tactical Retreats 4 | . 3 1 Traps | -11 -10 -10 ------- Run | Yrd Mat Sub Traps Triggered 2 | . 2 . Indirectly . | . . . Trap Hack Attempts . | . . . Triggered . | . . . Disarmed . | . . . Reprogrammed . | . . . Reused . | . . . Traps Extracted . | . . . Installed . | . . . Triggered . | . . . Machines | -11 -10 -10 ---------- Run | Yrd Mat Sub Machines Disabled 1 | . 1 . Max in Single Turn 1 | . 1 . Machines Repaired . | . . . Machines Dismantled . | . . . Machines Sabotaged . | . . . Overloaded Fab Kills . | . . . Hacking | -11 -10 -10 --------- Run | Yrd Mat Sub Machines Accessed 7 | . 6 1 Terminals 5 | . 5 . Fabricators . | . . . Repair Stations . | . . . Recycling Units 1 | . 1 . Scanalyzers . | . . . Garrison Access . | . . . Total Hacks 16 | . 12 4 Successful 11 | . 7 4 Failed 5 | . 5 . Catastrophic 1 | . 1 . Database Lockouts . | . . . Manual 11 | . 11 . Terminals 11 | . 11 . Fabricators . | . . . Repair Stations . | . . . Recycling Units 1 | . 1 . Scanalyzers . | . . . Garrison Access . | . . . Terminal Hacks 4 | . . 4 Record 4 | . . 4 Fabricator Hacks . | . . . Repair Station Hacks . | . . . Recycling Unit Hacks 1 | . 1 . Retrieve Components 1 | . 1 . Scanalyzer . | . . . Garrison Access Hacks . | . . . Unauthorized Hacks 6 | . 6 . Terminals 6 | . 6 . Botnet 4 | . 4 . Skim 2 | . 2 . Fabricators . | . . . Repair Stations . | . . . Recycling Units . | . . . Scanalyzers . | . . . Garrison Access . | . . . Data Cores Recovered 1 | . 1 . Used 1 | . 1 . Hacking Detections 5 | . 5 . Full Trace Events 1 | . 1 . Feedback Events . | . . . Feedback Blocked . | . . . Robot Schematics Acquired . | . . . Robots Built . | . . . Authchips . | . . . Time . | . . . Total Robot Build Rating . | . . . Part Schematics Acquired . | . . . Parts Built . | . . . Authchips . | . . . Time . | . . . Total Part Build Rating . | . . . Parts Repaired . | . . . Time . | . . . Parts Recycled . | . . . Recycled Matter . | . . . Retrieved Matter . | . . . Retrieved Components 9 | . 9 . Parts Scanalyzed . | . . . Part Schematics Acquired . | . . . Parts Damaged . | . . . Bothacking | -11 -10 -10 ------------ Run | Yrd Mat Sub Used RIF Installer . | . . . Robots Hacked . | . . . Non-combat . | . . . Combat . | . . . Robot Hacks Applied . | . . . Relay Couplers Released . | . . . Fabnet Peak Effective % . | . . . Robots Rewired . | . . . Allies Hacked . | . . . Hacks Repelled . | . . . Allies | -11 -10 -10 -------- Run | Yrd Mat Sub Total Allies . | . . . Largest Group . | . . . Highest-Rated Group . | . . . Highest-Rated Ally . | . . . Total Orders . | . . . Ally Attacks . | . . . Total Damage . | . . . Kills . | . . . Allies Corrupted . | . . . Allies Melted . | . . . Intel | -11 -10 -10 ------- Run | Yrd Mat Sub Active Infowar (turns) 1349 | 44 922 383 Optics 305 | . . 305 Seismic 1044 | 44 922 78 Robot Analysis Total . | . . . Derelict Logs Recovered 1 | . . 1 Drone Launches . | . . . Drone Recoveries . | . . . Exploration | -11 -10 -10 ------------- Run | Yrd Mat Sub Turns Passed 1998 | 113 1269 616 Spaces Moved 1354 | 65 798 491 Core 10 | 10 . . Treads 496 | 55 441 . Legs . | . . . Wheels 848 | . 357 491 Hover . | . . . Flight . | . . . Fastest Speed 50 | 50 90 90 Average Speed 115 | 143 128 90 Slowest Speed 160 | 160 160 105 Overloaded Moves . | . . . Propulsion Burnouts . | . . . Robots Hopped . | . . . Potential Cave-ins . | . . . Cave-ins Triggered . | . . . Exploration Rate (%) 45 | 4 95 36 Regions Visited 2 Branch Regions 1 Pre-discovered Areas 1 | . . 1 Known Exits Taken . | . . . Unknown Exits Taken 2 | 1 1 . Scrap Searched 2 | . . 2 Spaces Dug . | . . . Terrain Destroyed 19 | . . 19 Melee . | . . . Projectile . | . . . AOE 19 | . . 19 Terrain Rammed . | . . . Walls Destroyed . | . . . Machines Disabled . | . . . Actions | -11 -10 -10 --------- Run | Yrd Mat Sub Total 1607 | 78 926 603 Wait 101 | . 38 63 Move 1352 | 64 797 491 Hop . | . . . Pick Up 19 | 5 13 1 Fast Attach 9 | 7 1 1 Attach 8 | . 4 4 Detach . | . . . Swap 7 | . 1 6 Drop 8 | . 7 1 Fire 101 | 2 63 36 Melee . | . . . Ram . | . . . Kick . | . . . Crush 2 | . 2 . Escape Stasis . | . . . Rewire . | . . . Trap . | . . . Miscellaneous . | . . . Route ------- -11/Scrapyard -10/Materials (discovered 6 exits: [*Mat x3] / [*Min x2] / *Sub) -10/Subcaves History --------- Turn | Location | Event 23 | -11/Scrapyard | Discovered new exit (range 15) 114 | -11/Scrapyard | Entered Materials 305 | -10/Materials | Build established: Mutant 565 | -10/Materials | Discovered new exit (range 15) 664 | -10/Materials | Discovered new exit (range 8) 695 | -10/Materials | Discovered new exit (range 14) 913 | -10/Materials | Discovered new exit (range 12) 1077 | -10/Materials | Lost 3 parts (2n1u) 1109 | -10/Materials | Discovered new exit (range 15) 1375 | -10/Materials | Discovered new exit (range 13) 1383 | -10/Materials | Entered Subcaves 1463 | -10/Subcaves | Visited Clippyterm 1466 | -10/Subcaves | Learned location of Extension (-4) 1466 | -10/Subcaves | Learned Factory emergency access door positions 1543 | -10/Subcaves | Core integrity fell below 50% 1779 | -10/Subcaves | Ambushed by Subdwellers from Twisted Machinery 1899 | -10/Subcaves | Shifting Twisted Machinery released Sub. Power Source 1983 | -10/Subcaves | Disturbed a concealed Subdweller 1992 | -10/Subcaves | Core integrity fell below 20% 1999 | -10/Subcaves | Destroyed by FU-I4T(R) with Subdweller Laser Last Messages --------------- 01847_ Arm. Wheel destroyed. 01850_ Flight Unit fries itself beyond repair. 01850_ S-10 Pest destroyed. 01853_ Acquired 33 matter. 01858_ Flight Unit fries itself beyond repair. 01887_ Sub. Optics shoots sparks and powers down. 01887_ Dropped Broken Sub. Optics. Sub. Power Source falls loose from the Twisted Machinery. 01979_ Searching scrap... 01979_ Found Sub. Beam Cannon. 01979_ Found Sub. Monowheel. 01979_ Found 50 Matter. 01980_ Acquired 50 matter. 01980_ Searching scrap... 01980_ Found Battle Rifle. 01980_ Found Mak. Hacking Suite. 01980_ Found 55 Matter. 01981_ Acquired 33 matter. 01983_ FU-I4T(R) angrily emerges from the Twisted Machinery. 01988_ FU-I4T(R) affixes Scrap Shield Fragment to Scrap Shield. Map ----- +----------------------------------------------------+ | | | | | | | | | | | | | | | | | | | | | | | | | | | | | | | ?????????????????????????????????????????????????? | | ?????????????????????????????????????????????????? | | ?????????????????????????????????????????????????? | | ?????????????????????????????????????????????????? | | ?????????????????????????????????????????????????? | | ?????????????????????????????????????????????????? | | ?????????????????????????????????????????????????? | | ?????????????????????????????????????????????????? | | ?????????????????????????????????????????????????? | | ???????????????????????######????????????????????? | | ??????????????????????## @!%#????????????????????? | | ??????????????????????#$][<##????????????????????? | | ??????????????????????#R####?????????????????????? | | ??????????????????????#< #?????????????????????? | | ??????????????????????### ####???????????????????? | | ???????????????#########" " ##??????????????????? | | ????????????#### ## # #??????????????????? | | ????????????# #??????????????????? | | ????????????## #####??????????????????? | | ????????????# # # ##??????????????????????? | | ????????????# ####### #????####???????????????? | | #???????????# ##?????###??### ##??????????????? | | ???????????# #???####????# #??????????????? | | ??????????# #??# ##???# #??????????????? | | ??????????# ### #???## #??????????????? | | ?????????# #????## #??????????????? | | #????????## ##???## ##?????????????? | | ##???????## ####### #?????????????? | | ????#### ##### # #?????????????? | | ##### ###### ## #?????????????? | | ## ## ### ##?????????????? | | ## ## ### #??????????????? | | ## ## " ##??????????????? | | ## ## """#???????????????? | | ?? ## ## ### ###"" #??????????????? | +----------------------------------------------------+ Best States ------------- Heat Dissipation 25 Energy Generation 14 Energy Capacity 250 Matter Stores 300 Matter Capacity 300 Sight Range 21 Terrain Scan Density 10 Evasion (%) 50 Recoil Reduction 2 Item Schematics ----------------- None Robot Schematics ------------------ None Fabricated ------------ Nothing Repaired ---------- Nothing Alien Tech Used ----------------- None Achievements -------------- None Challenges ------------ None Game ------ Seed RiotDiametricMicrothruster Manual? 0 Play Time 00:14:26 Cumulative 174.4 hours Start 2025.07.04 @ 06:08:41 End 2025.07.04 @ 06:30:25 Sessions 1 Manual Loads 0 Difficulty Rogue Special Mode None Game No. 158 Rogue 158 Adventurer 0 Explorer 0 Win Type - Total 10 Types 5/0/3/2/0/0/0/0/0/0 Lore% 71 Gallery% 65 Achievement% 63 Wizard Run 0 Options --------- Layout 1 ASCII 0 Keyboard 0 Movement Mouse Keybinds 0 Fullscreen 1 Font 32/SmallcapsGlow Map View 77x35 Zoom Use 0% Tactical HUD 1 Map Filters NONE Filters NONE Steam 1 RUN: b641338e-b919-4729-9acc-5719778edef9